bitfinex/quotes_SOLUSD_20220216
["timestamp","ask_amount","ask_price","bid_price","bid_amount"]
[1645041834185,373.01416322,103.21,103.17,98.33]
[1645041834388,408.6677464,103.21,103.17,98.33]
[1645041834591,408.6677464,103.21,103.17,112.8668]
[1645041834788,408.6677464,103.21,103.18,0.25]
[1645041834989,35.65358318,103.21,103.18,0.25]
[1645041835189,14.5361,103.24,103.19,3.03219997]
[1645041836190,39.49627629,103.23,103.19,3.03219997]
[1645041838094,39.49627629,103.23,103.2,98.33]
[1645041838495,39.49627629,103.23,103.21,3.03219997]
[1645041839092,39.49627629,103.23,103.2,98.33]
[1645041839694,39.49627629,103.23,103.21,3.03219997]
[1645041840501,39.49627629,103.23,103.19,14.534]
[1645041840699,39.49627629,103.23,103.19,112.864]
[1645041841594,23.2135,103.25,103.19,112.864]
[1645041842796,476.24540322,103.27,103.2,134.96019459]
[1645041842995,451.98010322,103.27,103.2,148.95019459]
[1645041843197,451.98010322,103.27,103.21,2.12445526]
[1645041843594,451.98010322,103.27,103.22,98.33]
[1645041843794,2.93689297,103.31,103.24,98.33]
[1645041843997,42.70893823,103.3,103.26,98.33]
[1645041844197,2.93689297,103.31,103.26,98.33]
[1645041844198,0.19438076,103.31,103.26,98.33]
[1645041844800,0.19438076,103.31,103.26,14.5238]
[1645041844997,2.93689297,103.31,103.26,14.5238]
[1645041845799,48.30100139,103.31,103.26,14.5238]
[1645041846198,45.55848918,103.31,103.26,14.5238]
[1645041846598,45.55848918,103.31,103.26,112.8538]
[1645041847001,0.19438076,103.31,103.26,112.8538]
[1645041847599,0.19438076,103.31,103.26,114.97825526]
[1645041847798,0.19438076,103.31,103.26,112.8538]
[1645041847998,0.19438076,103.31,103.28,98.33]
[1645041849300,0.19438076,103.31,103.27,14.5218]
[1645041849500,0.19438076,103.31,103.26,14.5238]
[1645041850000,0.19438076,103.31,103.23,38.1598]
[1645041850302,0.19438076,103.31,103.24,98.33]
[1645041850700,0.19438076,103.31,103.26,98.33]
[1645041850900,0.19438076,103.31,103.26,143.264023]
[1645041851901,0.19438076,103.31,103.26,157.787623]
[1645041852100,0.19438076,103.31,103.26,159.91207826]
[1645041852306,0.19438076,103.31,103.26,173.90207826]
[1645041854106,0.19438076,103.31,103.26,171.777623]
[1645041854705,0.19438076,103.31,103.26,126.8436]
[1645041854906,0.19438076,103.31,103.26,13.99]
[1645041855509,0.19438076,103.31,103.25,98.33]
[1645041855706,39.04293458,103.31,103.25,136.98240364]
[1645041856309,39.04293458,103.31,103.26,0.25]
[1645041856909,0.19438076,103.31,103.26,0.25]
[1645041858010,0.19438076,103.31,103.26,98.58]
[1645041858212,0.19438076,103.31,103.28,98.33]
[1645041858814,0.19438076,103.31,103.29,3.03219997]
[1645041859422,0.19438076,103.31,103.3,35.14348637]
[1645041860020,0.19438076,103.31,103.29,3.03219997]
[1645041863124,0.19438076,103.31,103.3,21.59044645]
[1645041863523,0.19438076,103.31,103.3,119.92044645]
[1645041863727,0.19438076,103.31,103.3,98.33]
[1645041864225,0.19438076,103.31,103.27,112.8508]
[1645041864727,0.19438076,103.31,103.28,133.40833612]
[1645041865127,0.19438076,103.31,103.29,3.03219997]
[1645041865628,0.19438076,103.31,103.28,133.40833612]
[1645041866234,0.19438076,103.31,103.29,3.03219997]
[1645041866527,0.19438076,103.31,103.28,133.40833612]
[1645041866927,0.19438076,103.31,103.28,147.92763612]
[1645041867530,0.19438076,103.31,103.29,3.03219997]
[1645041867942,0.19438076,103.31,103.3,98.33]
[1645041868642,0.19438076,103.31,103.3,107.80141717]
[1645041869043,0.19438076,103.31,103.3,98.33]
[1645041869248,0.19438076,103.31,103.29,31.54029997]
[1645041869249,0.19438076,103.31,103.29,17.55029997]
[1645041869444,0.19438076,103.31,103.29,3.03219997]
[1645041869645,0.19438076,103.31,103.26,13.99]
[1645041869847,0.19438076,103.31,103.27,98.33]
[1645041870046,0.19438076,103.31,103.28,141.42053696]
[1645041870244,0.19438076,103.31,103.29,3.03219997]
[1645041870645,0.19438076,103.31,103.3,0.25]
[1645041871045,0.19438076,103.31,103.3,2.37445526]
[1645041871243,0.19438076,103.31,103.3,0.25]
[1645041871445,0.19438076,103.31,103.3,3.28219997]
[1645041871644,0.19438076,103.31,103.3,151.25964077]
[1645041871846,0.19438076,103.31,103.3,153.38409603]
[1645041872244,0.19438076,103.31,103.3,151.25964077]
[1645041872847,4.84,103.39,103.32,130.0]
[1645041873048,0.43813968,103.39,103.34,14.5101]
[1645041873351,0.10024,103.41,103.37,98.33]
[1645041873551,1.17219592,103.4,103.37,112.32]
[1645041873752,1.17219592,103.4,103.39,98.33]
[1645041874153,3.592e-05,103.41,103.4,98.33]
[1645041874951,3.592e-05,103.41,103.4,101.36219997]
[1645041875147,3.592e-05,103.41,103.4,98.33]
[1645041876053,3.592e-05,103.41,103.4,101.36219997]
[1645041877056,0.48553684,103.48,103.43,13.0]
[1645041877257,0.48553684,103.48,103.45,0.34745104]
[1645041877258,1.90320012,103.48,103.45,0.34745104]
[1645041877460,1.90320012,103.48,103.46,101.36219997]
[1645041878056,1.90320012,103.48,103.46,115.85639997]
[1645041878258,1.90320012,103.48,103.46,125.32278893]
[1645041878458,1.90320012,103.48,103.46,115.85639997]
[1645041879266,1.90320012,103.48,103.45,13.99]
[1645041879459,1.90320012,103.48,103.46,143.20770639]
[1645041880459,1.90320012,103.48,103.47,0.25]
[1645041881461,1.90320012,103.48,103.46,3.03219997]
[1645041881663,1.90320012,103.48,103.38,223.7241]
[1645041882060,1.90320012,103.48,103.39,16.11445526]
[1645041882260,1.90320012,103.48,103.39,20.94745526]
[1645041882462,45.07436392,103.48,103.42,98.33]
[1645041882660,45.07436392,103.48,103.42,119.25582773]
[1645041882860,45.07436392,103.48,103.43,0.25]
[1645041883261,1.90320012,103.48,103.43,0.25]
[1645041883865,1.90320012,103.48,103.42,119.25582773]
[1645041884673,1.90320012,103.48,103.43,104.33]
[1645041884869,1.90320012,103.48,103.44,131.00129351]
[1645041885273,1.90320012,103.48,103.45,0.25]
[1645041885477,1.90320012,103.48,103.46,3.03219997]
[1645041885676,1.90320012,103.48,103.45,0.25]
[1645041885873,1.90320012,103.48,103.45,113.0761]
[1645041886516,1.90320012,103.48,103.46,39.35213341]
[1645041886717,1.90320012,103.48,103.46,140.71433338]
[1645041887316,1.90320012,103.48,103.46,3.03219997]
[1645041887720,1.90320012,103.48,103.46,101.36219997]
[1645041888218,1.90320012,103.48,103.46,134.91410944]
[1645041888419,1.90320012,103.48,103.46,3.03219997]
[1645041888817,1.90320012,103.48,103.45,98.58]
[1645041889422,1.90320012,103.48,103.45,132.49780994]
[1645041889620,1.90320012,103.48,103.46,3.03219997]
[1645041890824,1.90320012,103.48,103.46,115.85649997]
[1645041891633,1.90320012,103.48,103.46,3.03219997]
[1645041892434,1.90320012,103.48,103.46,17.52679997]
[1645041892628,1.90320012,103.48,103.47,98.33]
[1645041893029,16.25047703,103.46,103.45,13.99]
[1645041893230,16.25047703,103.46,103.43,6.0]
[1645041893433,17.66814031,103.46,103.41,53.1579]
[1645041893635,17.66814031,103.46,103.42,14.4993]
[1645041893834,17.66814031,103.46,103.43,98.33]
[1645041894030,17.66814031,103.46,103.42,20.4993]
[1645041894230,17.66814031,103.46,103.42,34.4893]
[1645041894440,17.66814031,103.46,103.43,2.37445526]
[1645041894630,17.66814031,103.46,103.43,14.7487]
[1645041894832,17.66814031,103.46,103.43,113.0787]
[1645041895031,17.66814031,103.46,103.43,14.4987]
[1645041895333,17.66814031,103.46,103.42,19.99]
[1645041895532,17.66814031,103.46,103.43,5.76288636]
[1645041895732,17.66814031,103.46,103.43,104.09288636]
[1645041895933,17.66814031,103.46,103.43,118.59128636]
[1645041896131,17.66814031,103.46,103.43,112.8284]
[1645041896331,17.66814031,103.46,103.44,0.25]
[1645041897535,3.03219997,103.45,103.44,0.25]
[1645041897748,17.66814031,103.46,103.44,0.25]
[1645041897946,17.66814031,103.46,103.45,98.33]
[1645041898145,6.67159382,103.46,103.45,98.33]
[1645041898346,6.67159382,103.46,103.45,114.44445526]
[1645041898548,0.00159382,103.46,103.45,114.44445526]
[1645041899146,0.48553684,103.48,103.45,114.44445526]
[1645041899554,0.48553684,103.48,103.47,98.33]
[1645041899849,0.48553684,103.48,103.47,112.8204]
[1645041900047,0.48553684,103.48,103.47,114.94485526]
[1645041900450,0.48553684,103.48,103.47,128.93485526]
[1645041900650,0.48553684,103.48,103.47,126.8104]
[1645041900848,0.4559251,103.49,103.47,128.93485526]
[1645041901051,0.4599334,103.52,103.47,128.93485526]
[1645041901253,5.05952707,103.57,103.49,98.7859251]
[1645041901451,1.13336453,103.57,103.51,112.8155]
[1645041901651,0.4627966,103.58,103.53,98.33]
[1645041901849,0.4627966,103.58,103.53,112.32]
[1645041902052,0.31309076,103.57,103.53,112.32]
[1645041902249,0.50332636,103.57,103.53,112.32]
[1645041902450,0.50332636,103.57,103.53,114.44445526]
[1645041902851,0.50332636,103.57,103.53,112.32]
[1645041903050,0.50332636,103.57,103.53,126.8039]
[1645041903249,0.50332636,103.57,103.53,13.99]
[1645041904249,0.50332636,103.57,103.54,98.33]
[1645041904450,3.03219997,103.56,103.54,98.33]
[1645041904651,3.03219997,103.56,103.53,13.99]
[1645041905266,3.03219997,103.56,103.5,98.33]
[1645041905463,3.03219997,103.56,103.5,112.32]
[1645041905665,3.53552633,103.56,103.5,112.32]
[1645041906072,3.53552633,103.56,103.5,13.99]
[1645041906367,3.53552633,103.56,103.51,98.33]
[1645041906767,3.53552633,103.56,103.52,0.25]
[1645041907167,0.50332636,103.56,103.53,98.33]
[1645041907365,3.03219997,103.55,103.53,98.33]
[1645041907566,3.22243557,103.55,103.53,98.33]
[1645041908266,0.1902356,103.55,103.53,98.33]
[1645041908468,0.1902356,103.55,103.52,2.12445526]
[1645041908669,0.1902356,103.55,103.43,174.82]
[1645041908899,0.1902356,103.55,103.45,13.99]
[1645041909271,40.29387831,103.55,103.45,13.99]
[1645041909674,40.29387831,103.55,103.46,112.8229]
[1645041909867,40.29387831,103.55,103.48,98.33]
[1645041911669,40.29387831,103.55,103.48,112.32]
[1645041911872,40.29387831,103.55,103.48,28.4799]
[1645041912069,40.29387831,103.55,103.48,13.99]
[1645041912972,40.29387831,103.55,103.49,98.33]
[1645041913170,40.29387831,103.55,103.48,14.4904]
[1645041913969,40.29387831,103.55,103.49,98.33]
[1645041914170,40.29387831,103.55,103.49,98.58]
[1645041914570,40.29387831,103.55,103.49,0.25]
[1645041914773,40.29387831,103.55,103.48,14.4904]
[1645041915171,40.29387831,103.55,103.48,112.8204]
[1645041915371,40.29387831,103.55,103.48,14.4904]
[1645041916172,40.29387831,103.55,103.49,0.25]
[1645041917375,54.78667831,103.55,103.49,0.25]
[1645041919173,54.78667831,103.55,103.49,98.58]
[1645041919375,54.78667831,103.55,103.49,0.25]
[1645041919578,54.78667831,103.55,103.46,13.99]
[1645041919776,54.78667831,103.55,103.47,0.25]
[1645041919978,50.67492254,103.53,103.43,13.99]
[1645041920177,42.02979071,103.51,103.42,100.2786]
[1645041920381,42.02979071,103.51,103.42,4.83]
[1645041920779,42.02979071,103.51,103.42,103.16]
[1645041921179,14.4988,103.51,103.42,103.16]
[1645041921380,23.6101,103.52,103.44,98.33]
[1645041921580,23.6101,103.52,103.46,98.33]
[1645041921982,23.6101,103.52,103.44,13.99]
[1645041922180,43.25523184,103.51,103.44,13.99]
[1645041922380,43.25523184,103.51,103.43,48.5666]
[1645041923180,43.25523184,103.51,103.44,98.33]
[1645041923779,43.25523184,103.51,103.44,112.8268]
[1645041923988,23.6101,103.52,103.44,114.95125526]
[1645041924382,23.6101,103.52,103.46,146.6367]
[1645041924683,23.6101,103.52,103.46,148.76115526]
[1645041925083,23.6101,103.52,103.46,146.6367]
[1645041925883,23.6101,103.52,103.48,98.33]
[1645041926087,46.02533579,103.53,103.48,98.33]
[1645041926485,0.1902356,103.53,103.48,98.33]
[1645041927285,0.1902356,103.53,103.47,146.631]
[1645041927887,0.1902356,103.53,103.49,14.4914]
[1645041928092,0.1902356,103.53,103.49,112.8214]
[1645041928288,0.1902356,103.53,103.49,14.4914]
[1645041928489,0.1902356,103.53,103.45,68.3014]
[1645041928688,0.1902356,103.53,103.42,4.83]
[1645041928689,43.77442656,103.53,103.42,4.83]
[1645041928889,45.26108301,103.51,103.45,14.4975]
[1645041929488,37.8946,103.52,103.46,98.33]
[1645041929689,37.8946,103.52,103.45,14.4975]
[1645041930291,37.8946,103.52,103.46,0.25]
[1645041930491,23.3968,103.52,103.46,113.0756]
[1645041930891,23.3968,103.52,103.46,14.7456]
[1645041931514,47.97826699,103.51,103.46,14.7456]
[1645041932614,47.97826699,103.51,103.42,18.82]
[1645041932815,47.97826699,103.51,103.43,0.25]
[1645041932816,62.47686699,103.51,103.43,0.25]
[1645041933017,62.47686699,103.51,103.42,18.82]
[1645041933215,62.47686699,103.51,103.42,4.83]
[1645041933416,5.50862427,103.5,103.42,4.83]
[1645041933620,45.22871606,103.49,103.42,4.83]
[1645041934018,4.833,103.48,103.4,14.6715]
[1645041934220,48.37355578,103.47,103.37,28.1358]
[1645041934621,48.37355578,103.47,103.37,126.4658]
[1645041935020,24.9169,103.46,103.37,160.6672]
[1645041935218,38.38613877,103.45,103.37,160.6672]
[1645041935421,24.9169,103.46,103.37,160.6672]
[1645041935618,24.9169,103.46,103.37,114.44445526]
[1645041936020,24.9169,103.46,103.39,98.33]
[1645041936421,35.92159435,103.45,103.39,98.33]
[1645041936921,35.92159435,103.45,103.41,112.8319]
[1645041937324,35.92159435,103.45,103.41,14.5019]
[1645041937624,35.92159435,103.45,103.41,112.8319]
[1645041938330,35.92159435,103.45,103.41,14.5019]
[1645041938523,35.92159435,103.45,103.4,14.754]
[1645041938930,35.92159435,103.45,103.4,113.084]
[1645041939326,35.92159435,103.45,103.4,112.834]
[1645041939525,35.92159435,103.45,103.4,14.504]
[1645041939731,35.92159435,103.45,103.39,98.33]
[1645041939926,35.92159435,103.45,103.39,98.58]
[1645041941526,35.92159435,103.45,103.39,14.7552]
[1645041941732,50.42819435,103.45,103.39,0.25]
[1645041941926,51.79828605,103.45,103.39,0.25]
[1645041942927,51.79828605,103.45,103.39,98.58]
[1645041943132,35.92159435,103.45,103.39,98.33]
[1645041943330,26.2869917,103.46,103.39,98.33]
[1645041943626,26.2869917,103.46,103.41,98.33]
[1645041943627,1.3700917,103.46,103.41,98.33]
[1645041943832,24.7865,103.47,103.41,112.32]
[1645041944027,24.7865,103.47,103.43,98.33]
[1645041944237,24.7865,103.47,103.42,112.8289]
[1645041944430,38.50264209,103.46,103.43,0.25]
[1645041944633,3.03219997,103.45,103.43,0.25]
[1645041945431,40.20396747,103.44,103.42,112.8289]
[1645041945638,40.20396747,103.44,103.42,14.4989]
[1645041946131,40.20396747,103.44,103.41,14.5023]
[1645041946430,40.20396747,103.44,103.41,14.7523]
[1645041947033,3.03219997,103.43,103.41,14.7523]
[1645041947432,3.03219997,103.43,103.41,113.0823]
[1645041948434,1.3700917,103.48,103.41,113.0823]
[1645041948637,24.7948917,103.49,103.41,129.19675526]
[1645041949037,24.7948917,103.49,103.41,127.0723]
[1645041949239,38.69041616,103.48,103.41,127.0723]
[1645041949537,40.06050786,103.48,103.41,28.7423]
[1645041949737,40.06050786,103.48,103.41,14.7523]
[1645041950436,40.06050786,103.48,103.41,14.5023]
[1645041950937,54.56300786,103.48,103.41,14.5023]
[1645041951637,54.56300786,103.48,103.4,112.8339]
[1645041951838,1.3700917,103.47,103.41,0.25]
[1645041952038,35.37238921,103.46,103.41,0.25]
[1645041952940,35.37238921,103.46,103.39,112.32]
[1645041953345,35.37238921,103.46,103.4,0.25]
[1645041954843,49.87748921,103.46,103.4,0.25]
[1645041955044,35.37238921,103.46,103.4,113.0836]
[1645041955744,35.37238921,103.46,103.4,14.7536]
[1645041956445,36.74248091,103.46,103.4,14.7536]
[1645041957045,51.24748091,103.46,103.4,0.25]
[1645041957250,51.24748091,103.46,103.36,6.0]
[1645041957444,24.0898,103.45,103.37,13.99]
[1645041957667,43.6318046,103.44,103.35,111.4037]
[1645041958067,43.6318046,103.44,103.35,209.7337]
[1645041958472,43.6318046,103.44,103.38,98.33]
[1645041958670,42.2617129,103.44,103.38,98.33]
[1645041958871,42.2617129,103.44,103.38,100.45441679]
[1645041959270,42.2617129,103.44,103.38,98.33]
[1645041959869,42.2617129,103.44,103.37,13.99]
[1645041959870,42.2617129,103.44,103.4,98.33]
[1645041960272,42.2617129,103.44,103.38,98.33]
[1645041961477,42.2617129,103.44,103.38,103.165]
[1645041961772,1.3700917,103.46,103.41,98.33]
[1645041961973,24.1364917,103.47,103.41,98.33]
[1645041962174,1.3700917,103.46,103.4,98.33]
[1645041962578,42.28417159,103.45,103.4,98.33]
[1645041963876,42.28417159,103.45,103.41,112.8313]
[1645041964476,42.28417159,103.45,103.41,14.5013]
[1645041965078,42.28417159,103.45,103.4,14.5038]
[1645041965879,43.65426329,103.45,103.36,6.0]
[1645041966084,22.6097,103.44,103.36,13.99]
[1645041966279,46.43596972,103.43,103.37,14.5071]
[1645041966483,46.43596972,103.43,103.35,13.99]
[1645041966683,46.43596972,103.43,103.34,13.99]
[1645041967082,51.27196972,103.43,103.34,13.99]
[1645041967282,1.3700917,103.42,103.32,20.8351859]
[1645041967482,47.8169917,103.42,103.33,20.5131]
[1645041967682,47.8169917,103.42,103.33,120.96751679]
[1645041967683,48.81854483,103.41,103.33,120.96751679]
[1645041967884,48.81854483,103.41,103.33,22.63751679]
[1645041968285,48.81854483,103.41,103.34,0.25]
[1645041968488,63.33134483,103.41,103.34,14.7624]
[1645041968688,63.33134483,103.41,103.34,113.0924]
[1645041969485,48.81854483,103.41,103.34,115.21681679]
[1645041969883,48.81854483,103.41,103.36,14.51]
[1645041970184,48.81854483,103.41,103.36,112.84]
[1645041970384,48.81854483,103.41,103.38,98.33]
[1645041970588,48.81854483,103.41,103.38,13.99]
[1645041971084,48.81854483,103.41,103.39,14.5042]
[1645041971287,3.03219997,103.4,103.39,14.5042]
[1645041971687,48.81854483,103.41,103.39,14.5042]
[1645041972386,48.81854483,103.41,103.39,112.8342]
[1645041972586,48.81854483,103.41,103.39,14.5042]
[1645041974392,48.81854483,103.41,103.39,112.8342]
[1645041974792,1.3700917,103.44,103.39,112.8342]
[1645041975293,1.3700917,103.45,103.39,112.8342]
[1645041975495,1.3700917,103.45,103.39,14.5042]
[1645041975893,39.39464705,103.44,103.39,14.5042]
[1645041976417,40.76473875,103.44,103.39,14.5042]
[1645041976995,40.76473875,103.44,103.38,14.5073]
[1645041978497,40.76473875,103.44,103.38,112.8373]
[1645041978999,40.76473875,103.44,103.38,14.5073]
[1645041979396,40.76473875,103.44,103.38,112.8373]
[1645041979596,40.76473875,103.44,103.38,14.5073]
[1645041981399,40.76473875,103.44,103.38,112.8373]
[1645041986102,40.76473875,103.44,103.38,14.5073]
[1645041987106,1.3700917,103.43,103.38,14.5073]
[1645041987404,36.98296914,103.42,103.38,112.8373]
[1645041987805,36.98296914,103.42,103.38,114.95329968]
[1645041988009,1.3700917,103.45,103.38,112.8373]
[1645041988405,1.3700917,103.45,103.39,0.06]
[1645041988606,1.3700917,103.45,103.39,14.5652]
[1645041989208,37.47459537,103.44,103.39,14.5652]
[1645041989907,37.47459537,103.44,103.39,112.8952]
[1645041990110,37.47459537,103.44,103.39,16.68119968]
[1645041990308,37.47459537,103.44,103.39,14.5652]
[1645041990609,37.47459537,103.44,103.39,112.8352]
[1645041991928,37.47459537,103.44,103.4,0.25]
[1645041992128,37.47459537,103.44,103.4,14.7546]
[1645041993231,37.47459537,103.44,103.4,0.25]
[1645041994235,38.84468707,103.44,103.4,0.25]
[1645041994433,38.84468707,103.44,103.37,14.5074]
[1645041994832,1.3700917,103.43,103.37,14.5074]
[1645041995034,42.86386707,103.42,103.37,14.5074]
[1645041996333,42.86386707,103.42,103.38,0.25]
[1645041997734,57.37476707,103.42,103.38,0.25]
[1645041997934,57.37476707,103.42,103.35,14.5106]
[1645041998134,63.58085877,103.42,103.35,14.5106]
[1645041998334,58.74485877,103.42,103.35,14.5106]
[1645041998939,58.74485877,103.42,103.33,2.11599968]
[1645041999140,1.3700917,103.4,103.26,4.836]
[1645041999359,14.5208,103.36,103.24,28.6561]
[1645041999555,14.5208,103.36,103.24,18.828]
[1645041999556,40.44755842,103.35,103.24,18.828]
[1645041999746,40.44755842,103.35,103.24,13.99]
[1645042000145,88.99275842,103.35,103.24,13.99]
[1645042000344,90.36285012,103.35,103.24,112.32]
[1645042000946,14.5234,103.33,103.24,126.8449]
[1645042001145,37.45340144,103.32,103.24,126.8449]
[1645042001350,37.45340144,103.32,103.24,14.5249]
[1645042001551,37.45340144,103.32,103.22,4.84]
[1645042001858,45.34940144,103.32,103.23,6.0]
[1645042002060,4.841,103.31,103.23,6.0]
[1645042002251,41.25301603,103.3,103.23,6.0]
[1645042003251,41.25301603,103.3,103.24,0.25]
[1645042003450,14.5309,103.29,103.19,13.99]
[1645042003651,34.55493804,103.28,103.18,18.37622682]
[1645042003850,44.79993804,103.28,103.16,5.3609072]
[1645042004055,81.56473804,103.28,103.16,5.3609072]
[1645042004251,81.56473804,103.28,103.16,0.5179072]
[1645042004463,84.10586208,103.28,103.16,0.5179072]
[1645042004853,14.5374,103.25,103.16,0.5179072]
[1645042005053,48.58739944,103.24,103.16,0.5179072]
[1645042005253,67.42139944,103.24,103.16,0.5179072]
[1645042005457,62.57739944,103.24,103.16,0.5179072]
[1645042006054,77.11619944,103.24,103.16,0.5179072]
[1645042006454,48.58739944,103.24,103.16,0.5179072]
[1645042007260,48.58739944,103.24,103.16,115.5000282]
[1645042008058,47.58739944,103.24,103.16,17.1700282]
[1645042008261,47.58739944,103.24,103.16,2.6340282]
[1645042008459,47.58739944,103.24,103.16,0.5179072]
[1645042009960,47.58739944,103.24,103.17,2.116121]
[1645042010190,47.58739944,103.24,103.17,6.960121]
[1645042010364,47.58739944,103.24,103.17,4.844]
[1645042010766,47.58739944,103.24,103.18,0.25]
[1645042010966,47.58739944,103.24,103.18,14.7834]
[1645042011968,47.8368,103.26,103.18,14.7834]
[1645042012169,47.8368,103.26,103.18,129.219521]
[1645042012464,47.8368,103.26,103.18,30.889521]
[1645042012667,29.2956,103.3,103.18,129.219521]
[1645042012866,73.2284,103.3,103.2,14.5298]
[1645042013066,35.65470954,103.29,103.2,14.5298]
[1645042015868,35.65470954,103.29,103.2,112.8598]
[1645042019373,40.49570954,103.29,103.2,112.8598]
[1645042020471,35.65470954,103.29,103.2,112.8598]
[1645042020670,35.65470954,103.29,103.21,0.25]
[1645042021173,35.65470954,103.29,103.22,98.33]
[1645042023779,35.65470954,103.29,103.21,14.7795]
[1645042023980,35.65470954,103.29,103.21,0.25]
[1645042024383,2.54112404,103.28,103.17,4.841]
[1645042024582,41.34695108,103.27,103.16,0.5179072]
[1645042024782,52.777,103.26,103.16,0.5179072]
[1645042025084,39.52552851,103.25,103.16,0.5179072]
[1645042025702,39.52552851,103.25,103.16,0.7679072]
[1645042026200,54.06382851,103.25,103.16,15.3048072]
[1645042026399,54.06382851,103.25,103.16,113.6348072]
[1645042027003,39.52552851,103.25,103.16,113.6348072]
[1645042027206,39.52552851,103.25,103.16,115.75160465]
[1645042027606,39.52552851,103.25,103.16,113.6348072]
[1645042027802,39.52552851,103.25,103.16,115.75160465]
[1645042028606,39.52552851,103.25,103.16,134.58560465]
[1645042029004,39.52552851,103.25,103.16,134.33560465]
[1645042029703,39.52552851,103.25,103.16,129.49160465]
[1645042030407,39.52552851,103.25,103.17,0.25]
[1645042030705,39.52552851,103.25,103.17,14.5362]
[1645042031005,39.52552851,103.25,103.16,16.62470465]
[1645042031205,44.36952851,103.25,103.16,0.5179072]
[1645042031408,39.52552851,103.25,103.16,0.5179072]
[1645042031807,45.44907362,103.23,103.16,0.5179072]
[1645042032308,45.44907362,103.23,103.16,0.7679072]
[1645042033905,45.44907362,103.23,103.16,0.5179072]
[1645042035207,45.44907362,103.23,103.16,0.7679072]
[1645042035608,59.98847362,103.23,103.16,0.7679072]
[1645042036408,59.98847362,103.23,103.16,0.5179072]
[1645042037212,62.52959766,103.23,103.16,0.26996176]
[1645042037409,130.0,103.21,103.16,0.53992352]
[1645042037611,119.0,103.19,103.13,0.34540152]
[1645042037810,38.89035667,103.18,103.13,0.34540152]
[1645042038407,103.0,103.17,103.11,0.56683324]
[1645042038707,111.2584,103.19,103.11,0.56683324]
[1645042038708,36.73430345,103.16,103.11,0.56683324]
[1645042041411,48.7679,103.19,103.11,0.56683324]
[1645042041709,48.7679,103.19,103.12,98.33]
[1645042041921,48.7679,103.19,103.13,112.8711]
[1645042042311,24.2469,103.22,103.13,112.8711]
[1645042042611,36.75692673,103.21,103.13,14.5411]
[1645042042810,36.75692673,103.21,103.13,112.8711]
[1645042044715,46.3256,103.24,103.13,112.8711]
[1645042044913,1.3700917,103.27,103.18,98.33]
[1645042045113,75.71204214,103.29,103.18,98.33]
[1645042045314,23.6061,103.29,103.18,98.33]
[1645042045717,38.87063749,103.28,103.17,13.99]
[1645042045915,77.01703749,103.28,103.17,13.99]
[1645042047815,77.01703749,103.28,103.18,14.5341]
[1645042048215,2.54112404,103.27,103.15,13.99]
[1645042048417,14.5396,103.24,103.14,13.99]
[1645042048614,36.58337712,103.23,103.12,18.834]
[1645042048815,36.58337712,103.23,103.12,13.99]
[1645042049015,36.58337712,103.23,103.14,14.5411]
[1645042049616,53.66490116,103.23,103.11,0.56683324]
[1645042049818,4.846,103.22,103.11,0.56683324]
[1645042050017,46.96116568,103.21,103.11,15.11213324]
[1645042050818,14.5453,103.2,103.12,0.25]
[1645042051020,44.87557532,103.19,103.12,0.25]
[1645042051419,44.37557532,103.19,103.11,15.11213324]
[1645042051621,42.51145039,103.17,103.06,0.21306332]
[1645042051820,13.99,103.16,103.06,0.21306332]
[1645042052019,42.00378835,103.14,103.06,0.21306332]
[1645042052518,42.00378835,103.14,103.06,112.8822]
[1645042052744,42.00378835,103.14,103.06,14.5522]
[1645042053117,42.00378835,103.14,103.07,6.0]
[1645042053821,42.00378835,103.14,103.08,0.25]
[1645042054019,42.00378835,103.14,103.08,14.7995]
[1645042054821,56.55428835,103.14,103.08,14.7995]
[1645042055224,56.55428835,103.14,103.06,0.42612664]
[1645042055823,41.05774947,103.12,103.06,0.42612664]
[1645042056723,41.05774947,103.12,103.06,6.42612664]
[1645042056921,41.05774947,103.12,103.07,0.25]
[1645042058125,14.5518,103.14,103.07,0.25]
[1645042058325,24.6168,103.15,103.07,14.8004]